[Event "*** Titled Tuesday Blitz"]
[Site "Chess.com"]
[Date "2021.03.09"]
[Round "1"]
[White "Vandros57"]
[Black "AlexSuv"]
[Result "0-1"]
[WhiteElo "2207"]
[BlackElo "2536"]
[TimeControl "180+1"]
[EndTime "10:07:51 PST"]
[Termination "AlexSuv won on time"]

1. d4 {[%clk 0:02:58]} 1... Nf6 {[%clk 0:02:59.6]} 2. c4 {[%clk 0:02:56.2]} 2...
e6 {[%clk 0:02:59.7]} 3. Nf3 {[%clk 0:02:54.4]} 3... d5 {[%clk 0:02:59]} 4. Nc3
{[%clk 0:02:52.4]} 4... Bb4 {[%clk 0:02:58.5]} 5. cxd5 {[%clk 0:02:45.5]} 5...
exd5 {[%clk 0:02:59.4]} 6. Bg5 {[%clk 0:02:43.1]} 6... h6 {[%clk 0:03:00]} 7.
Bxf6 {[%clk 0:02:40.7]} 7... Qxf6 {[%clk 0:03:00.9]} 8. Qa4+ {[%clk 0:02:37.3]}
8... Nc6 {[%clk 0:03:01.1]} 9. e3 {[%clk 0:02:36]} 9... O-O {[%clk 0:03:00.8]}
10. Bb5 {[%clk 0:02:32.3]} 10... Bd7 {[%clk 0:02:44.5]} 11. Bxc6 {[%clk
0:02:30.5]} 11... Bxc3+ {[%clk 0:02:40.9]} 12. bxc3 {[%clk 0:02:29.4]} 12...
Bxc6 {[%clk 0:02:41.5]} 13. Qb3 {[%clk 0:02:21.4]} 13... b6 {[%clk 0:02:19.8]}
14. O-O {[%clk 0:02:20]} 14... Bb7 {[%clk 0:02:16.7]} 15. Ne5 {[%clk 0:02:13.5]}
15... Rfd8 {[%clk 0:02:16.1]} 16. f4 {[%clk 0:02:10.7]} 16... Qf5 {[%clk
0:02:07.3]} 17. Qb1 {[%clk 0:02:06.2]} 17... Qxb1 {[%clk 0:01:58]} 18. Raxb1
{[%clk 0:02:05.2]} 18... f6 {[%clk 0:01:58.3]} 19. Ng6 {[%clk 0:01:58.4]} 19...
Kf7 {[%clk 0:01:52.8]} 20. f5 {[%clk 0:01:55.2]} 20... Ba6 {[%clk 0:01:41]} 21.
Rf3 {[%clk 0:01:46.3]} 21... Bd3 {[%clk 0:01:39.8]} 22. Rc1 {[%clk 0:01:43.5]}
22... Be4 {[%clk 0:01:39.4]} 23. Rf2 {[%clk 0:01:33.6]} 23... c5 {[%clk
0:01:38.9]} 24. g4 {[%clk 0:01:28]} 24... Rac8 {[%clk 0:01:24.2]} 25. Nf4 {[%clk
0:01:26.2]} 25... cxd4 {[%clk 0:01:24.3]} 26. Ne6 {[%clk 0:01:04.4]} 26... Rd6
{[%clk 0:01:23.9]} 27. Nxd4 {[%clk 0:00:57.6]} 27... h5 {[%clk 0:01:20.1]} 28.
h3 {[%clk 0:00:56.7]} 28... hxg4 {[%clk 0:01:19.2]} 29. hxg4 {[%clk 0:00:55.1]}
29... Rd7 {[%clk 0:01:11.9]} 30. Kh2 {[%clk 0:00:48.5]} 30... Rh8+ {[%clk
0:00:58.6]} 31. Kg3 {[%clk 0:00:47.2]} 31... Rdd8 {[%clk 0:00:59.1]} 32. Rh2
{[%clk 0:00:41.2]} 32... Rxh2 {[%clk 0:00:58.6]} 33. Kxh2 {[%clk 0:00:40.5]}
33... Bd3 {[%clk 0:00:48.2]} 34. Kg3 {[%clk 0:00:38.2]} 34... Bc4 {[%clk
0:00:43.7]} 35. a3 {[%clk 0:00:35.3]} 35... Rh8 {[%clk 0:00:42.8]} 36. Kg2
{[%clk 0:00:28.6]} 36... Bd3 {[%clk 0:00:40.1]} 37. Kg3 {[%clk 0:00:27]} 37...
g6 {[%clk 0:00:38.8]} 38. fxg6+ {[%clk 0:00:25.1]} 38... Kxg6 {[%clk 0:00:39.3]}
39. Nf3 {[%clk 0:00:22]} 39... Re8 {[%clk 0:00:35.4]} 40. Nh4+ {[%clk
0:00:19.6]} 40... Kf7 {[%clk 0:00:35.7]} 41. Re1 {[%clk 0:00:13.3]} 41... Rc8
{[%clk 0:00:33.4]} 42. Rc1 {[%clk 0:00:12.8]} 42... Rc4 {[%clk 0:00:33.7]} 43.
Nf3 {[%clk 0:00:08.5]} 43... Ra4 {[%clk 0:00:31.3]} 44. Ra1 {[%clk 0:00:07.6]}
44... Rc4 {[%clk 0:00:31.3]} 45. Rc1 {[%clk 0:00:06.9]} 45... Be4 {[%clk
0:00:22.7]} 46. Nd4 {[%clk 0:00:06.5]} 46... Rc8 {[%clk 0:00:22.9]} 47. Ne2
{[%clk 0:00:04.4]} 47... Ke6 {[%clk 0:00:21.3]} 48. Nd4+ {[%clk 0:00:04.2]}
48... Ke5 {[%clk 0:00:21.6]} 49. Kf2 {[%clk 0:00:03.6]} 49... Rh8 {[%clk
0:00:20.6]} 50. Kg3 {[%clk 0:00:03.4]} 50... Rg8 {[%clk 0:00:19.6]} 51. Ne2
{[%clk 0:00:03.2]} 51... f5 {[%clk 0:00:19.6]} 52. Kf2 {[%clk 0:00:01.3]} 52...
Rxg4 {[%clk 0:00:19.6]} 0-1

[Event "*** Titled Tuesday Blitz"]
[Site "Chess.com"]
[Date "2021.03.09"]
[Round "1"]
[White "MrrRefrao"]
[Black "German_Bazeev"]
[Result "0-1"]
[WhiteElo "2401"]
[BlackElo "2738"]
[TimeControl "180+1"]
[EndTime "10:07:52 PST"]
[Termination "German_Bazeev won on time"]

1. e4 {[%clk 0:03:00.8]} 1... c6 {[%clk 0:02:56.7]} 2. d4 {[%clk 0:02:59.1]}
2... d5 {[%clk 0:02:56.4]} 3. e5 {[%clk 0:02:59.1]} 3... Na6 {[%clk 0:02:56.3]}
4. Nd2 {[%clk 0:02:48.9]} 4... Nc7 {[%clk 0:02:55.3]} 5. Ngf3 {[%clk 0:02:35.6]}
5... g6 {[%clk 0:02:54.5]} 6. Nb3 {[%clk 0:02:17.4]} 6... Bg7 {[%clk 0:02:52]}
7. h3 {[%clk 0:02:13.9]} 7... Nh6 {[%clk 0:02:49.3]} 8. Bf4 {[%clk 0:02:11.7]}
8... f6 {[%clk 0:02:46.6]} 9. Qd2 {[%clk 0:02:08.3]} 9... Nf7 {[%clk 0:02:44]}
10. Qe3 {[%clk 0:01:49.7]} 10... O-O {[%clk 0:02:40]} 11. Bd3 {[%clk 0:01:44.3]}
11... Ne6 {[%clk 0:02:39.9]} 12. Bh2 {[%clk 0:01:34.7]} 12... Bh6 {[%clk
0:02:23.1]} 13. Qe2 {[%clk 0:01:34]} 13... Nf4 {[%clk 0:02:21.5]} 14. Bxf4
{[%clk 0:01:33.1]} 14... Bxf4 {[%clk 0:02:22.4]} 15. e6 {[%clk 0:01:16.4]} 15...
Ng5 {[%clk 0:02:21.9]} 16. Nxg5 {[%clk 0:01:14]} 16... fxg5 {[%clk 0:02:10.1]}
17. g3 {[%clk 0:01:11.6]} 17... Rf6 {[%clk 0:01:59.2]} 18. Nc5 {[%clk
0:00:32.1]} 18... Bd6 {[%clk 0:01:53.1]} 19. O-O-O {[%clk 0:00:30.7]} 19... Bxc5
{[%clk 0:01:51.1]} 20. dxc5 {[%clk 0:00:30.3]} 20... Rxe6 {[%clk 0:01:46.2]} 21.
Qd2 {[%clk 0:00:29.6]} 21... Qf8 {[%clk 0:01:40.5]} 22. h4 {[%clk 0:00:24.8]}
22... Rf6 {[%clk 0:01:19.9]} 23. Rh2 {[%clk 0:00:13.8]} 23... g4 {[%clk
0:00:58.3]} 24. h5 {[%clk 0:00:13.4]} 24... g5 {[%clk 0:00:58.7]} 25. Qxg5+
{[%clk 0:00:12.6]} 25... Kh8 {[%clk 0:00:56.8]} 26. h6 {[%clk 0:00:11.7]} 26...
Qf7 {[%clk 0:00:45]} 27. Re1 {[%clk 0:00:10.8]} 27... Be6 {[%clk 0:00:42]} 28.
b4 {[%clk 0:00:03.9]} 28... Rg8 {[%clk 0:00:37.3]} 29. Qe5 {[%clk 0:00:03.5]}
29... Bd7 {[%clk 0:00:30.3]} 30. Qxe7 {[%clk 0:00:01.7]} 30... Re8 {[%clk
0:00:25.5]} 31. Qxf7 {[%clk 0:00:01.1]} 31... Rxe1+ {[%clk 0:00:25.8]} 32. Kd2
{[%clk 0:00:02]} 32... Rxf7 {[%clk 0:00:26.7]} 33. Kxe1 {[%clk 0:00:01.8]} 33...
Rf6 {[%clk 0:00:26.2]} 34. Kd2 {[%clk 0:00:02.7]} 34... Kg8 {[%clk 0:00:21.8]}
35. a3 {[%clk 0:00:03.6]} 35... a6 {[%clk 0:00:19.7]} 36. Ke3 {[%clk 0:00:04.1]}
36... Be6 {[%clk 0:00:17]} 37. Kd4 {[%clk 0:00:03.7]} 37... Bd7 {[%clk
0:00:15.9]} 38. Ke5 {[%clk 0:00:04.2]} 38... Re6+ {[%clk 0:00:15.4]} 39. Kf4
{[%clk 0:00:04.7]} 39... Rf6+ {[%clk 0:00:15.8]} 40. Kg5 {[%clk 0:00:04.8]}
40... Re6 {[%clk 0:00:12.3]} 41. c4 {[%clk 0:00:04.4]} 41... d4 {[%clk
0:00:10.9]} 42. b5 {[%clk 0:00:02.8]} 42... axb5 {[%clk 0:00:10.2]} 43. cxb5
{[%clk 0:00:03.7]} 43... cxb5 {[%clk 0:00:11.1]} 44. Rh1 {[%clk 0:00:02.7]}
44... Re5+ {[%clk 0:00:10.3]} 45. Kf4 {[%clk 0:00:02.3]} 45... Rxc5 {[%clk
0:00:10.2]} 46. Re1 {[%clk 0:00:02]} 46... Kf7 {[%clk 0:00:07.9]} 0-1

[Event "*** Titled Tuesday Blitz"]
[Site "Chess.com"]
[Date "2021.03.09"]
[Round "1"]
[White "Fighter008"]
[Black "poneis_malditos"]
[Result "1/2-1/2"]
[WhiteElo "2611"]
[BlackElo "2326"]
[TimeControl "180+1"]
[EndTime "10:07:52 PST"]
[Termination "Game drawn - insufficient material"]

1. e4 {[%clk 0:03:00.7]} 1... c5 {[%clk 0:02:59.5]} 2. Nf3 {[%clk 0:03:00.2]}
2... e6 {[%clk 0:03:00.1]} 3. d4 {[%clk 0:02:59.3]} 3... cxd4 {[%clk 0:03:01]}
4. Nxd4 {[%clk 0:03:00]} 4... a6 {[%clk 0:03:01.5]} 5. Nc3 {[%clk 0:02:58.7]}
5... Qc7 {[%clk 0:03:01.2]} 6. Bd3 {[%clk 0:02:58.6]} 6... Nf6 {[%clk 0:02:59]}
7. Qe2 {[%clk 0:02:58.5]} 7... d6 {[%clk 0:02:59.4]} 8. f4 {[%clk 0:02:58.3]}
8... b5 {[%clk 0:02:55.4]} 9. Bd2 {[%clk 0:02:48.1]} 9... Bb7 {[%clk 0:02:54.3]}
10. O-O-O {[%clk 0:02:46.1]} 10... Nbd7 {[%clk 0:02:53.4]} 11. g4 {[%clk
0:02:46.4]} 11... Nc5 {[%clk 0:02:50.5]} 12. g5 {[%clk 0:02:46.1]} 12... Nfd7
{[%clk 0:02:50.5]} 13. a3 {[%clk 0:02:40.5]} 13... Nxd3+ {[%clk 0:02:45.7]} 14.
cxd3 {[%clk 0:02:39.7]} 14... Nc5 {[%clk 0:02:46.6]} 15. Kb1 {[%clk 0:02:39]}
15... g6 {[%clk 0:02:38.4]} 16. f5 {[%clk 0:02:37.9]} 16... e5 {[%clk
0:02:33.9]} 17. Nc2 {[%clk 0:02:32.8]} 17... Nb3 {[%clk 0:02:18.6]} 18. Nb4
{[%clk 0:02:22.8]} 18... Nd4 {[%clk 0:02:14.4]} 19. Qf2 {[%clk 0:02:20.6]} 19...
a5 {[%clk 0:02:13]} 20. Nbd5 {[%clk 0:01:50.7]} 20... Bxd5 {[%clk 0:02:11.8]}
21. Nxd5 {[%clk 0:01:51.4]} 21... Qc2+ {[%clk 0:02:09.3]} 22. Ka1 {[%clk
0:01:51.2]} 22... b4 {[%clk 0:01:17.7]} 23. Be3 {[%clk 0:01:45.1]} 23... bxa3
{[%clk 0:01:11.7]} 24. Qxc2 {[%clk 0:01:27]} 24... Nxc2+ {[%clk 0:01:12.6]} 25.
Kb1 {[%clk 0:01:18.6]} 25... Nxe3 {[%clk 0:01:13.5]} 26. Nxe3 {[%clk 0:01:18.3]}
26... axb2 {[%clk 0:01:12.7]} 27. Kxb2 {[%clk 0:01:18.1]} 27... Kd7 {[%clk
0:00:48.8]} 28. Ka2 {[%clk 0:01:03.1]} 28... h6 {[%clk 0:00:48.4]} 29. fxg6
{[%clk 0:00:37]} 29... fxg6 {[%clk 0:00:47.2]} 30. gxh6 {[%clk 0:00:37.3]} 30...
Bxh6 {[%clk 0:00:46.2]} 31. Nd5 {[%clk 0:00:37.9]} 31... Rab8 {[%clk 0:00:39.8]}
32. Rhg1 {[%clk 0:00:33]} 32... Bf4 {[%clk 0:00:33.7]} 33. Rxg6 {[%clk 0:00:24]}
33... Rxh2+ {[%clk 0:00:32.2]} 34. Ka3 {[%clk 0:00:24.4]} 34... Rhb2 {[%clk
0:00:24.4]} 35. Rg7+ {[%clk 0:00:22.4]} 35... Kd8 {[%clk 0:00:21.5]} 36. Rg8+
{[%clk 0:00:20.3]} 36... Kd7 {[%clk 0:00:21]} 37. Rxb8 {[%clk 0:00:19]} 37...
Rxb8 {[%clk 0:00:19.8]} 38. Ka4 {[%clk 0:00:19.5]} 38... Kc6 {[%clk 0:00:17.8]}
39. Kxa5 {[%clk 0:00:08.7]} 39... Kc5 {[%clk 0:00:18]} 40. Ka6 {[%clk
0:00:08.8]} 40... Ra8+ {[%clk 0:00:17.5]} 41. Kb7 {[%clk 0:00:09]} 41... Ra3
{[%clk 0:00:18.4]} 42. Kc7 {[%clk 0:00:08.6]} 42... Ra7+ {[%clk 0:00:17.6]} 43.
Kd8 {[%clk 0:00:08]} 43... Kd4 {[%clk 0:00:18.5]} 44. Kc8 {[%clk 0:00:04.4]}
44... Ra3 {[%clk 0:00:17.5]} 45. Kd7 {[%clk 0:00:04.5]} 45... Rxd3 {[%clk
0:00:17.9]} 46. Rxd3+ {[%clk 0:00:04]} 46... Kxd3 {[%clk 0:00:18.8]} 47. Nf6
{[%clk 0:00:03.9]} 47... Bg5 {[%clk 0:00:16.7]} 48. Ng4 {[%clk 0:00:01.2]} 48...
Kxe4 {[%clk 0:00:16.1]} 49. Kxd6 {[%clk 0:00:01.7]} 49... Kd4 {[%clk 0:00:16.3]}
50. Nxe5 {[%clk 0:00:02.2]} 1/2-1/2

[Event "*** Titled Tuesday Blitz"]
[Site "Chess.com"]
[Date "2021.03.09"]
[Round "1"]
[White "Vanina1989"]
[Black "Keures"]
[Result "1-0"]
[WhiteElo "2752"]
[BlackElo "2404"]
[TimeControl "180+1"]
[EndTime "10:07:53 PST"]
[Termination "Vanina1989 won by resignation"]

1. d4 {[%clk 0:03:00.9]} 1... Nf6 {[%clk 0:02:59.6]} 2. c4 {[%clk 0:03:00.6]}
2... e6 {[%clk 0:02:59.3]} 3. Nf3 {[%clk 0:03:00.1]} 3... b6 {[%clk 0:02:58.3]}
4. Bf4 {[%clk 0:02:59.3]} 4... Bb7 {[%clk 0:02:57.7]} 5. e3 {[%clk 0:02:59.8]}
5... Bd6 {[%clk 0:02:57.6]} 6. Bxd6 {[%clk 0:02:59.1]} 6... cxd6 {[%clk
0:02:57.9]} 7. Bd3 {[%clk 0:02:59.1]} 7... d5 {[%clk 0:02:57.8]} 8. cxd5 {[%clk
0:02:58]} 8... Bxd5 {[%clk 0:02:55.8]} 9. Nc3 {[%clk 0:02:57.6]} 9... Bb7 {[%clk
0:02:55.5]} 10. O-O {[%clk 0:02:58]} 10... d5 {[%clk 0:02:55.2]} 11. Rc1 {[%clk
0:02:57.7]} 11... a6 {[%clk 0:02:52.5]} 12. Ne5 {[%clk 0:02:56.6]} 12... Nbd7
{[%clk 0:02:50.1]} 13. f4 {[%clk 0:02:56.7]} 13... O-O {[%clk 0:02:47.4]} 14.
Qf3 {[%clk 0:02:55.8]} 14... Rc8 {[%clk 0:02:39.7]} 15. Qh3 {[%clk 0:02:55.5]}
15... Ne4 {[%clk 0:02:31.9]} 16. Bxe4 {[%clk 0:02:50.5]} 16... dxe4 {[%clk
0:02:31.3]} 17. Rcd1 {[%clk 0:02:28.7]} 17... Qe7 {[%clk 0:02:24.3]} 18. Nxd7
{[%clk 0:02:23.9]} 18... Qxd7 {[%clk 0:02:23.9]} 19. d5 {[%clk 0:02:24.3]} 19...
f5 {[%clk 0:02:07]} 20. dxe6 {[%clk 0:02:17.9]} 20... Qxe6 {[%clk 0:02:07.9]}
21. Rd4 {[%clk 0:02:18]} 21... Rc4 {[%clk 0:01:46.4]} 22. Rfd1 {[%clk
0:02:16.9]} 22... Rxd4 {[%clk 0:01:46.9]} 23. Rxd4 {[%clk 0:02:16.5]} 23... Rc8
{[%clk 0:01:41.4]} 24. Qh4 {[%clk 0:02:14.2]} 24... h6 {[%clk 0:01:32.4]} 25.
Rd8+ {[%clk 0:02:13.1]} 25... Kh7 {[%clk 0:01:30.9]} 26. Rxc8 {[%clk 0:02:12.8]}
26... Bxc8 {[%clk 0:01:30.9]} 27. Qd8 {[%clk 0:02:11.9]} 27... Bd7 {[%clk
0:01:27.1]} 28. h3 {[%clk 0:02:05.1]} 28... Bb5 {[%clk 0:01:24.1]} 29. a4 {[%clk
0:01:17.4]} 29... Bd3 {[%clk 0:01:18.2]} 30. Qd5 {[%clk 0:01:13.4]} 30... Qg6
{[%clk 0:01:04.7]} 31. Kf2 {[%clk 0:00:57.6]} 31... h5 {[%clk 0:01:04.4]} 32.
Qd8 {[%clk 0:00:52.1]} 32... Bc2 {[%clk 0:00:51.7]} 33. a5 {[%clk 0:00:31.8]}
33... bxa5 {[%clk 0:00:48.9]} 34. Qxa5 {[%clk 0:00:31.8]} 34... h4 {[%clk
0:00:48]} 35. Kg1 {[%clk 0:00:24.5]} 35... Bd3 {[%clk 0:00:44.1]} 36. Qe5 {[%clk
0:00:24.5]} 36... Qf7 {[%clk 0:00:39.5]} 37. Nd5 {[%clk 0:00:23]} 37... Bc4
{[%clk 0:00:18.5]} 38. Ne7 {[%clk 0:00:23]} 38... Be6 {[%clk 0:00:17.8]} 39. Nc6
{[%clk 0:00:23]} 39... Qd7 {[%clk 0:00:16.1]} 40. Nd4 {[%clk 0:00:22.7]} 40...
Bf7 {[%clk 0:00:11.4]} 41. Qxf5+ {[%clk 0:00:22.6]} 41... Qxf5 {[%clk
0:00:11.5]} 42. Nxf5 {[%clk 0:00:22.9]} 42... g5 {[%clk 0:00:08.1]} 43. fxg5
{[%clk 0:00:20.2]} 43... Kg6 {[%clk 0:00:08.2]} 44. Nxh4+ {[%clk 0:00:19.7]}
44... Kxg5 {[%clk 0:00:09.1]} 45. g3 {[%clk 0:00:20.3]} 45... Be6 {[%clk
0:00:08.9]} 46. Kh2 {[%clk 0:00:19.9]} 46... Bg8 {[%clk 0:00:08.6]} 47. Ng2
{[%clk 0:00:20]} 47... Be6 {[%clk 0:00:08.6]} 48. Nf4 {[%clk 0:00:20.3]} 48...
Bf7 {[%clk 0:00:09]} 49. Kg2 {[%clk 0:00:19.7]} 49... Kf5 {[%clk 0:00:08.9]} 50.
Kf2 {[%clk 0:00:19.9]} 50... Ke5 {[%clk 0:00:09.3]} 51. g4 {[%clk 0:00:20.2]}
51... Kf6 {[%clk 0:00:07.8]} 52. Kg3 {[%clk 0:00:20.4]} 52... Kg5 {[%clk
0:00:08.7]} 53. h4+ {[%clk 0:00:21]} 53... Kf6 {[%clk 0:00:09.6]} 54. h5 {[%clk
0:00:20.7]} 54... Kg5 {[%clk 0:00:09.8]} 55. Nh3+ {[%clk 0:00:21.1]} 55... Kf6
{[%clk 0:00:10]} 56. Kf4 {[%clk 0:00:21.5]} 56... Be6 {[%clk 0:00:09.7]} 57. Nf2
{[%clk 0:00:21.7]} 57... Bd5 {[%clk 0:00:09.5]} 58. Nxe4+ {[%clk 0:00:22.2]}
58... Bxe4 {[%clk 0:00:09.9]} 1-0

[Event "*** Titled Tuesday Blitz"]
[Site "Chess.com"]
[Date "2021.03.09"]
[Round "1"]
[White "Fy_Rakotomaharo"]
[Black "A-S-00"]
[Result "1-0"]
[WhiteElo "2716"]
[BlackElo "2391"]
[TimeControl "180+1"]
[EndTime "10:07:53 PST"]
[Termination "Fy_Rakotomaharo won by resignation"]

1. f4 {[%clk 0:02:55.8]} 1... d5 {[%clk 0:02:59.2]} 2. Nf3 {[%clk 0:02:56.2]}
2... c5 {[%clk 0:02:59.4]} 3. g3 {[%clk 0:02:55.8]} 3... Nc6 {[%clk 0:03:00]} 4.
d3 {[%clk 0:02:56.2]} 4... g6 {[%clk 0:02:59.9]} 5. Bg2 {[%clk 0:02:56.5]} 5...
Bg7 {[%clk 0:03:00.5]} 6. O-O {[%clk 0:02:57]} 6... e6 {[%clk 0:03:00.2]} 7. c3
{[%clk 0:02:56.8]} 7... Nge7 {[%clk 0:02:59.8]} 8. e4 {[%clk 0:02:53.8]} 8...
O-O {[%clk 0:02:59.2]} 9. Be3 {[%clk 0:02:51.2]} 9... d4 {[%clk 0:02:51.6]} 10.
Bf2 {[%clk 0:02:51]} 10... Rb8 {[%clk 0:02:44.9]} 11. c4 {[%clk 0:02:47.8]}
11... e5 {[%clk 0:02:29.6]} 12. Nbd2 {[%clk 0:02:40.8]} 12... f5 {[%clk
0:02:17.6]} 13. fxe5 {[%clk 0:02:35.2]} 13... Nxe5 {[%clk 0:02:16.5]} 14. Nxe5
{[%clk 0:02:32.9]} 14... Bxe5 {[%clk 0:02:17.4]} 15. Nf3 {[%clk 0:02:28.2]}
15... Bg7 {[%clk 0:02:15.8]} 16. Re1 {[%clk 0:02:18.1]} 16... Nc6 {[%clk
0:02:00]} 17. a3 {[%clk 0:02:12.6]} 17... a6 {[%clk 0:01:55.5]} 18. h3 {[%clk
0:02:11.2]} 18... fxe4 {[%clk 0:01:36.1]} 19. Rxe4 {[%clk 0:02:10.7]} 19... Bf5
{[%clk 0:01:35.2]} 20. Re1 {[%clk 0:02:09.9]} 20... b5 {[%clk 0:01:26.6]} 21. g4
{[%clk 0:02:07.3]} 21... Bd7 {[%clk 0:01:24.9]} 22. Bg3 {[%clk 0:02:07]} 22...
Rb7 {[%clk 0:00:59.2]} 23. cxb5 {[%clk 0:02:00]} 23... Rxb5 {[%clk 0:00:55.8]}
24. Qc2 {[%clk 0:01:56.6]} 24... Qb6 {[%clk 0:00:46.1]} 25. Re2 {[%clk
0:01:54.4]} 25... h6 {[%clk 0:00:38.7]} 26. Rc1 {[%clk 0:01:53]} 26... Na5
{[%clk 0:00:31.7]} 27. Ne5 {[%clk 0:01:42.8]} 27... Be8 {[%clk 0:00:27.7]} 28.
Be4 {[%clk 0:01:23.7]} 28... Nb3 {[%clk 0:00:26.1]} 29. Rce1 {[%clk 0:01:23.1]}
29... Kh7 {[%clk 0:00:22.1]} 30. h4 {[%clk 0:01:22.7]} 30... Bxe5 {[%clk
0:00:20.3]} 31. Bxe5 {[%clk 0:01:22.7]} 31... Bc6 {[%clk 0:00:20.5]} 32. Bd6
{[%clk 0:01:11.1]} 32... Rf7 {[%clk 0:00:17.8]} 33. Qc4 {[%clk 0:01:04.3]} 33...
Rg7 {[%clk 0:00:16.6]} 34. Be5 {[%clk 0:01:01.4]} 34... Bxe4 {[%clk 0:00:15.5]}
35. Bxg7 {[%clk 0:00:58.8]} 35... Qd6 {[%clk 0:00:14.1]} 36. dxe4 {[%clk
0:00:36.4]} 36... Qg3+ {[%clk 0:00:13.6]} 37. Kh1 {[%clk 0:00:36]} 37... Qh3+
{[%clk 0:00:11.3]} 38. Rh2 {[%clk 0:00:36]} 38... Qf3+ {[%clk 0:00:11.2]} 39.
Rg2 {[%clk 0:00:28.7]} 39... Qh3+ {[%clk 0:00:10.2]} 40. Kg1 {[%clk 0:00:28.1]}
40... Kxg7 {[%clk 0:00:10.6]} 41. Qe6 {[%clk 0:00:22]} 41... Rb7 {[%clk
0:00:08.4]} 42. Qe5+ {[%clk 0:00:21.6]} 42... Kh7 {[%clk 0:00:08.4]} 43. Rf1
{[%clk 0:00:19.5]} 43... Qxh4 {[%clk 0:00:08.2]} 44. Qd5 {[%clk 0:00:14.5]}
44... Qe7 {[%clk 0:00:07.5]} 45. e5 {[%clk 0:00:13.4]} 45... Na5 {[%clk
0:00:05.5]} 46. e6 {[%clk 0:00:13.5]} 46... Rc7 {[%clk 0:00:05.1]} 47. Rf7+
{[%clk 0:00:13.4]} 47... Qxf7 {[%clk 0:00:04.4]} 48. exf7 {[%clk 0:00:14]} 48...
Kg7 {[%clk 0:00:04.1]} 49. Qe5+ {[%clk 0:00:14.4]} 49... Kf8 {[%clk 0:00:05]}
50. Qxc7 {[%clk 0:00:14.8]} 1-0

[Event "*** Titled Tuesday Blitz"]
[Site "Chess.com"]
[Date "2021.03.09"]
[Round "1"]
[White "Nf3c5"]
[Black "BvsN"]
[Result "1-0"]
[WhiteElo "2605"]
[BlackElo "2303"]
[TimeControl "180+1"]
[EndTime "10:07:54 PST"]
[Termination "Nf3c5 won by resignation"]

1. d4 {[%clk 0:02:59.1]} 1... d5 {[%clk 0:02:59.9]} 2. Bf4 {[%clk 0:02:59.1]}
2... c5 {[%clk 0:02:59.7]} 3. e3 {[%clk 0:02:58.8]} 3... Nc6 {[%clk 0:03:00]} 4.
c3 {[%clk 0:02:58.8]} 4... Nf6 {[%clk 0:02:59.4]} 5. Nd2 {[%clk 0:02:58.4]} 5...
Bf5 {[%clk 0:02:59.6]} 6. Qb3 {[%clk 0:02:57.7]} 6... Qc8 {[%clk 0:02:57.9]} 7.
dxc5 {[%clk 0:02:57.2]} 7... e6 {[%clk 0:02:51.9]} 8. Qa3 {[%clk 0:02:56.2]}
8... Nd7 {[%clk 0:02:43.8]} 9. Bd6 {[%clk 0:02:55]} 9... Bxd6 {[%clk 0:02:27.4]}
10. cxd6 {[%clk 0:02:54.5]} 10... O-O {[%clk 0:02:26.1]} 11. Ngf3 {[%clk
0:02:54]} 11... Nde5 {[%clk 0:02:20.8]} 12. Nxe5 {[%clk 0:02:11.8]} 12... Nxe5
{[%clk 0:02:20.5]} 13. Nb3 {[%clk 0:02:12.7]} 13... Nd3+ {[%clk 0:01:55.1]} 14.
Bxd3 {[%clk 0:02:04.9]} 14... Bxd3 {[%clk 0:01:56]} 15. Rd1 {[%clk 0:02:05.2]}
15... Bc4 {[%clk 0:01:49.8]} 16. Nd2 {[%clk 0:02:00.8]} 16... Bd3 {[%clk
0:01:44.6]} 17. Nf3 {[%clk 0:02:00.1]} 17... Ba6 {[%clk 0:01:39.4]} 18. Ne5
{[%clk 0:01:51.8]} 18... Rd8 {[%clk 0:01:27.9]} 19. Nd3 {[%clk 0:01:47]} 19...
Bxd3 {[%clk 0:01:17.9]} 20. Rxd3 {[%clk 0:01:46.3]} 20... Qc6 {[%clk 0:01:07.3]}
21. e4 {[%clk 0:01:40.6]} 21... Qb5 {[%clk 0:00:42.4]} 22. Rd4 {[%clk
0:01:31.4]} 22... Rd7 {[%clk 0:00:39.2]} 23. c4 {[%clk 0:01:17.6]} 23... dxc4
{[%clk 0:00:34.5]} 24. O-O {[%clk 0:01:17.9]} 24... Qc6 {[%clk 0:00:22.8]} 25.
Rfd1 {[%clk 0:01:17.4]} 25... b5 {[%clk 0:00:19.6]} 26. Qa5 {[%clk 0:01:05.8]}
26... Rad8 {[%clk 0:00:17.5]} 27. e5 {[%clk 0:01:05.2]} 27... Qb6 {[%clk
0:00:14.8]} 28. Qxb6 {[%clk 0:01:00.2]} 28... axb6 {[%clk 0:00:15.7]} 29. a3
{[%clk 0:01:00.9]} 29... Kf8 {[%clk 0:00:15.7]} 30. f4 {[%clk 0:00:53]} 30...
Rc8 {[%clk 0:00:14.8]} 31. Rc1 {[%clk 0:00:51.2]} 31... Rc5 {[%clk 0:00:14.4]}
32. Kf2 {[%clk 0:00:51.3]} 32... f6 {[%clk 0:00:14.3]} 33. Re4 {[%clk
0:00:49.9]} 33... Kf7 {[%clk 0:00:14.2]} 34. Ke3 {[%clk 0:00:47.6]} 34... Rd5
{[%clk 0:00:12.9]} 35. Rd4 {[%clk 0:00:44.8]} 35... fxe5 {[%clk 0:00:12.5]} 36.
Rxd5 {[%clk 0:00:44.5]} 36... exf4+ {[%clk 0:00:12.4]} 37. Kxf4 {[%clk
0:00:45.4]} 37... exd5 {[%clk 0:00:13.3]} 38. Ke5 {[%clk 0:00:46.3]} 38... d4
{[%clk 0:00:12.8]} 39. Rf1+ {[%clk 0:00:44.8]} 39... Ke8 {[%clk 0:00:12.5]} 40.
Ke6 {[%clk 0:00:45.7]} 40... d3 {[%clk 0:00:11.9]} 41. Rf2 {[%clk 0:00:45.8]}
41... b4 {[%clk 0:00:08.2]} 42. axb4 {[%clk 0:00:45.5]} 42... b5 {[%clk
0:00:08.5]} 43. h4 {[%clk 0:00:44.5]} 43... h5 {[%clk 0:00:08.3]} 44. g3 {[%clk
0:00:43.9]} 44... g6 {[%clk 0:00:08.4]} 45. Rf4 {[%clk 0:00:39.2]} 45... Ra7
{[%clk 0:00:04.7]} 46. Kd5 {[%clk 0:00:26]} 46... Ra1 {[%clk 0:00:03.5]} 47.
Re4+ {[%clk 0:00:26]} 47... Kd8 {[%clk 0:00:03.3]} 48. Rd4 {[%clk 0:00:24.6]}
48... Re1 {[%clk 0:00:02.8]} 49. Kc6 {[%clk 0:00:24.3]} 49... Re8 {[%clk
0:00:02.2]} 50. Rf4 {[%clk 0:00:23.1]} 50... d2 {[%clk 0:00:01.7]} 51. Rd4
{[%clk 0:00:23.1]} 51... Re2 {[%clk 0:00:01.9]} 52. Kxb5 {[%clk 0:00:23.2]}
52... Rg2 {[%clk 0:00:01.4]} 53. Kxc4 {[%clk 0:00:23.1]} 53... Rxg3 {[%clk
0:00:01.1]} 54. Rxd2 {[%clk 0:00:23.6]} 54... Rg4+ {[%clk 0:00:01.7]} 55. Rd4
{[%clk 0:00:23.4]} 55... Rxh4 {[%clk 0:00:02.6]} 56. Rxh4 {[%clk 0:00:22.9]} 1-0